{"text_format":"3","workbook":"xlsx","n_sheets":7,"sheets":["DO NOT DELETE-Lookup Table","Overview ","Example","Delivery Plan","Summary","ASCA Student Standards ","All Behavior Standards"],"not_rendered":{"images":4,"defined_names":2},"read":"whole","date_system":"1900"}

{"sheet":"DO NOT DELETE-Lookup Table","index":0,"n_rows":0,"n_cols":0,"rows_kept":0}

{"sheet":"Overview ","index":1,"n_rows":23,"n_cols":1,"rows_kept":23}
[]
[]
["Purpose"]
["This plan provides an overview of how the behavior standards from the ASCA Student Standards are delivered by the school counselor directly "]
["to students to enhance life-readiness skills. "]
[" "]
["Implementation Notes"]
["Tier 1 - Lessons and/or sessions are…"]
["1. Developmental and/or preventative"]
["2. Delivered to each and every student at a grade level  in classroom, large group, small group or individual settings"]
[" "]
["Tier 2 - Lessons and/or sessions are…"]
["1. Delivered to one student group in response to identified need or teacher request   OR "]
["2. Delivered to students with the identified need in small groups (four-eight sessions and three–12 students)"]
[" "]
["Programs for families, students and/or partners that support the Tier 1 activity and standard"]
["Includes events sponsored by the school counseling program such as career fairs, college night, etc. for families/education partners  that "]
["support the tier 1 activity and standard (if applicable)"]
[]
["This plan may be updated throughout the year."]
[]
[]
["ASCA National Model® Fifth Edition \t\t8/25"]

{"sheet":"Example","index":2,"n_rows":19,"n_cols":8,"rows_kept":19,"merged":[[0,0,0,7],[2,0,2,3],[2,4,2,6],[3,0,3,3],[3,4,3,6],[5,0,5,2],[5,3,5,7],[6,0,6,2],[6,3,6,6]]}
[]
[{"$nulls":3},"Lessons and Group Sessions "]
["School Name",{"$nulls":3},"Date Created",null,null,"Revision Date"]
["Wonderful Middle School",{"$nulls":3},"2025-06-20"]
[]
["ASCA Student Standards",null,null,"Delivery Plan "]
["Choose only one standard per lesson or session"]
["Learning Strategies","Self-Management Skills","Social Skills ","Title of lesson or group session                                    \n 1 - List each only once.             2 - Include brief explantion of unique titles.","Delivery \nTier 1 or\n Tier 2","Participants","Start","Programs/events for families, students and/or partners that support the Tier 1 activity and standard \n(if applicable)"]
["B-LS 10. \nParticipation in enrichment and extracurricular activities",null,null,"Exploring opportunities to get involved at the middle school lesson","Tier 1","All Grade 6","(4) Oct"]
["B-LS 7. \nLong- and short-term academic, career and social/emotional goals",null,null,"Seventh grade goal setting lesson","Tier 1","All Grade 7","(4) Oct"]
["B-LS 7. \nLong- and short-term academic, career and social/emotional goals",null,null,"Eighth grade career exploration lesson: Exploring career paths and the requirements","Tier 1","All Grade 8","(5) Nov","Career Day: All grades participate in school-day event. Sessions created based on student interest in career paths.  (March)"]
["B-LS 3. \nTime-management, organizational and study skills",null,null,"Academic success small group focused on developing time management and study skills.","Tier 2","Grade 6 students who failed one course in first quarter","(5) Nov"]
[null,"B-SMS 6. \nAbility to identify and overcome barriers ",null,"Building on my strengths -Lesson on personal growth and resilience","Tier 1","All Grade 8","(6) Dec"]
["B-LS 9. \nDecision-making informed by gathering evidence, getting others’ perspectives and recognizing personal bias",null,null,"Career awareness assessment and exploration lesson","Tier 1","All Grade 6","(8) Feb"]
["B-LS 1. \nCritical-thinking skills to make informed decisions",null,null,"Career Cluster exploration lesson: Students select at least one of interest","Tier 1","All Grade 7","(8) Feb"]
[null,"B-SMS 10. \nAbility to manage transitions and adapt to change",null,"Getting ready for high school lesson: Managing different expectations, transition what you need to know","Tier 1","All Grade 8","(9) Mar","High School Visit and Orientation (April)"]
[null,null,"B-SS 8. \nAdvocacy skills for self and others and ability to assert self, when necessary","Learning to advocate for yourself and others appropriately lesson","Tier 1","All Grade 6 ","(1) Jan "]
["B-LS 3. \nTime-management, organizational and study skills",null,null,"HOPS Small Group (Homework Organization Planning and Study Skills): Focused on organization and study skills","Tier 2","Grade 8 students who failed 2 core courses in 7th grade","(4) Oct"]
[null,"B-SMS 7. \nEffective coping skills ",null,"Stress Less Squad -  Small group focused on how to manage stress and worry","Tier 2","Grade 7 students identified as having high levels of worry and stress ","(5) Nov"]

{"sheet":"Delivery Plan","index":3,"n_rows":79,"n_cols":9,"rows_kept":79}
[]
[{"$nulls":3},"Lessons and Group Sessions "]
["School Name",{"$nulls":3},"Date Created",null,null,"Revision Date"]
[]
[]
["ASCA Student Standards",null,null,"Delivery Plan "]
["Choose only one standard per lesson or session"]
["Learning Strategies","Self-Management Skills","Social Skills ","Title of lesson or group session                                                     1 - List each only once.                   2 - Include brief explantion of unique titles.","Delivery \nTier 1 or\n Tier 2","Participants","Start","Programs/events for families, students and/or partners that support the Tier 1 activity and standard (if applicable)","SORT"]
[{"$nulls":8},{"$f":"VLOOKUP(TRIM(RIGHT(G9,LEN(G9)-FIND(\" \",G9))), 'All Behavior Standards'!$A$36:$B$46, 2, FALSE)","v":{"$error":"#VALUE!"}}]
[{"$nulls":8},{"$f":"VLOOKUP(TRIM(RIGHT(G10,LEN(G10)-FIND(\" \",G10))), 'All Behavior Standards'!$A$36:$B$46, 2, FALSE)","v":{"$error":"#VALUE!"}}]
[{"$nulls":8},{"$f":"VLOOKUP(TRIM(RIGHT(G11,LEN(G11)-FIND(\" \",G11))), 'All Behavior Standards'!$A$36:$B$46, 2, FALSE)","v":{"$error":"#VALUE!"}}]
[{"$nulls":8},{"$f":"VLOOKUP(TRIM(RIGHT(G12,LEN(G12)-FIND(\" \",G12))), 'All Behavior Standards'!$A$36:$B$46, 2, FALSE)","v":{"$error":"#VALUE!"}}]
[{"$nulls":8},{"$f":"VLOOKUP(TRIM(RIGHT(G13,LEN(G13)-FIND(\" \",G13))), 'All Behavior Standards'!$A$36:$B$46, 2, FALSE)","v":{"$error":"#VALUE!"}}]
[{"$nulls":8},{"$f":"VLOOKUP(TRIM(RIGHT(G14,LEN(G14)-FIND(\" \",G14))), 'All Behavior Standards'!$A$36:$B$46, 2, FALSE)","v":{"$error":"#VALUE!"}}]
[{"$nulls":8},{"$f":"VLOOKUP(TRIM(RIGHT(G15,LEN(G15)-FIND(\" \",G15))), 'All Behavior Standards'!$A$36:$B$46, 2, FALSE)","v":{"$error":"#VALUE!"}}]
[{"$nulls":8},{"$f":"VLOOKUP(TRIM(RIGHT(G16,LEN(G16)-FIND(\" \",G16))), 'All Behavior Standards'!$A$36:$B$46, 2, FALSE)","v":{"$error":"#VALUE!"}}]
[{"$nulls":8},{"$f":"VLOOKUP(TRIM(RIGHT(G17,LEN(G17)-FIND(\" \",G17))), 'All Behavior Standards'!$A$36:$B$46, 2, FALSE)","v":{"$error":"#VALUE!"}}]
[{"$nulls":8},{"$f":"VLOOKUP(TRIM(RIGHT(G18,LEN(G18)-FIND(\" \",G18))), 'All Behavior Standards'!$A$36:$B$46, 2, FALSE)","v":{"$error":"#VALUE!"}}]
[{"$nulls":8},{"$f":"VLOOKUP(TRIM(RIGHT(G19,LEN(G19)-FIND(\" \",G19))), 'All Behavior Standards'!$A$36:$B$46, 2, FALSE)","v":{"$error":"#VALUE!"}}]
[{"$nulls":8},{"$f":"VLOOKUP(TRIM(RIGHT(G20,LEN(G20)-FIND(\" \",G20))), 'All Behavior Standards'!$A$36:$B$46, 2, FALSE)","v":{"$error":"#VALUE!"}}]
[{"$nulls":8},{"$f":"VLOOKUP(TRIM(RIGHT(G21,LEN(G21)-FIND(\" \",G21))), 'All Behavior Standards'!$A$36:$B$46, 2, FALSE)","v":{"$error":"#VALUE!"}}]
[{"$nulls":8},{"$f":"VLOOKUP(TRIM(RIGHT(G22,LEN(G22)-FIND(\" \",G22))), 'All Behavior Standards'!$A$36:$B$46, 2, FALSE)","v":{"$error":"#VALUE!"}}]
[{"$nulls":8},{"$f":"VLOOKUP(TRIM(RIGHT(G23,LEN(G23)-FIND(\" \",G23))), 'All Behavior Standards'!$A$36:$B$46, 2, FALSE)","v":{"$error":"#VALUE!"}}]
[{"$nulls":8},{"$f":"VLOOKUP(TRIM(RIGHT(G24,LEN(G24)-FIND(\" \",G24))), 'All Behavior Standards'!$A$36:$B$46, 2, FALSE)","v":{"$error":"#VALUE!"}}]
[{"$nulls":8},{"$f":"VLOOKUP(TRIM(RIGHT(G25,LEN(G25)-FIND(\" \",G25))), 'All Behavior Standards'!$A$36:$B$46, 2, FALSE)","v":{"$error":"#VALUE!"}}]
[{"$nulls":8},{"$f":"VLOOKUP(TRIM(RIGHT(G26,LEN(G26)-FIND(\" \",G26))), 'All Behavior Standards'!$A$36:$B$46, 2, FALSE)","v":{"$error":"#VALUE!"}}]
[{"$nulls":8},{"$f":"VLOOKUP(TRIM(RIGHT(G27,LEN(G27)-FIND(\" \",G27))), 'All Behavior Standards'!$A$36:$B$46, 2, FALSE)","v":{"$error":"#VALUE!"}}]
[{"$nulls":8},{"$f":"VLOOKUP(TRIM(RIGHT(G28,LEN(G28)-FIND(\" \",G28))), 'All Behavior Standards'!$A$36:$B$46, 2, FALSE)","v":{"$error":"#VALUE!"}}]
[{"$nulls":8},{"$f":"VLOOKUP(TRIM(RIGHT(G29,LEN(G29)-FIND(\" \",G29))), 'All Behavior Standards'!$A$36:$B$46, 2, FALSE)","v":{"$error":"#VALUE!"}}]
[{"$nulls":8},{"$f":"VLOOKUP(TRIM(RIGHT(G30,LEN(G30)-FIND(\" \",G30))), 'All Behavior Standards'!$A$36:$B$46, 2, FALSE)","v":{"$error":"#VALUE!"}}]
[{"$nulls":8},{"$f":"VLOOKUP(TRIM(RIGHT(G31,LEN(G31)-FIND(\" \",G31))), 'All Behavior Standards'!$A$36:$B$46, 2, FALSE)","v":{"$error":"#VALUE!"}}]
[{"$nulls":8},{"$f":"VLOOKUP(TRIM(RIGHT(G32,LEN(G32)-FIND(\" \",G32))), 'All Behavior Standards'!$A$36:$B$46, 2, FALSE)","v":{"$error":"#VALUE!"}}]
[{"$nulls":8},{"$f":"VLOOKUP(TRIM(RIGHT(G33,LEN(G33)-FIND(\" \",G33))), 'All Behavior Standards'!$A$36:$B$46, 2, FALSE)","v":{"$error":"#VALUE!"}}]
[{"$nulls":8},{"$f":"VLOOKUP(TRIM(RIGHT(G34,LEN(G34)-FIND(\" \",G34))), 'All Behavior Standards'!$A$36:$B$46, 2, FALSE)","v":{"$error":"#VALUE!"}}]
[{"$nulls":8},{"$f":"VLOOKUP(TRIM(RIGHT(G35,LEN(G35)-FIND(\" \",G35))), 'All Behavior Standards'!$A$36:$B$46, 2, FALSE)","v":{"$error":"#VALUE!"}}]
[{"$nulls":8},{"$f":"VLOOKUP(TRIM(RIGHT(G36,LEN(G36)-FIND(\" \",G36))), 'All Behavior Standards'!$A$36:$B$46, 2, FALSE)","v":{"$error":"#VALUE!"}}]
[{"$nulls":8},{"$f":"VLOOKUP(TRIM(RIGHT(G37,LEN(G37)-FIND(\" \",G37))), 'All Behavior Standards'!$A$36:$B$46, 2, FALSE)","v":{"$error":"#VALUE!"}}]
[{"$nulls":8},{"$f":"VLOOKUP(TRIM(RIGHT(G38,LEN(G38)-FIND(\" \",G38))), 'All Behavior Standards'!$A$36:$B$46, 2, FALSE)","v":{"$error":"#VALUE!"}}]
[{"$nulls":8},{"$f":"VLOOKUP(TRIM(RIGHT(G39,LEN(G39)-FIND(\" \",G39))), 'All Behavior Standards'!$A$36:$B$46, 2, FALSE)","v":{"$error":"#VALUE!"}}]
[{"$nulls":8},{"$f":"VLOOKUP(TRIM(RIGHT(G40,LEN(G40)-FIND(\" \",G40))), 'All Behavior Standards'!$A$36:$B$46, 2, FALSE)","v":{"$error":"#VALUE!"}}]
[{"$nulls":8},{"$f":"VLOOKUP(TRIM(RIGHT(G41,LEN(G41)-FIND(\" \",G41))), 'All Behavior Standards'!$A$36:$B$46, 2, FALSE)","v":{"$error":"#VALUE!"}}]
[{"$nulls":8},{"$f":"VLOOKUP(TRIM(RIGHT(G42,LEN(G42)-FIND(\" \",G42))), 'All Behavior Standards'!$A$36:$B$46, 2, FALSE)","v":{"$error":"#VALUE!"}}]
[{"$nulls":8},{"$f":"VLOOKUP(TRIM(RIGHT(G43,LEN(G43)-FIND(\" \",G43))), 'All Behavior Standards'!$A$36:$B$46, 2, FALSE)","v":{"$error":"#VALUE!"}}]
[{"$nulls":8},{"$f":"VLOOKUP(TRIM(RIGHT(G44,LEN(G44)-FIND(\" \",G44))), 'All Behavior Standards'!$A$36:$B$46, 2, FALSE)","v":{"$error":"#VALUE!"}}]
[{"$nulls":8},{"$f":"VLOOKUP(TRIM(RIGHT(G45,LEN(G45)-FIND(\" \",G45))), 'All Behavior Standards'!$A$36:$B$46, 2, FALSE)","v":{"$error":"#VALUE!"}}]
[{"$nulls":8},{"$f":"VLOOKUP(TRIM(RIGHT(G46,LEN(G46)-FIND(\" \",G46))), 'All Behavior Standards'!$A$36:$B$46, 2, FALSE)","v":{"$error":"#VALUE!"}}]
[{"$nulls":8},{"$f":"VLOOKUP(TRIM(RIGHT(G47,LEN(G47)-FIND(\" \",G47))), 'All Behavior Standards'!$A$36:$B$46, 2, FALSE)","v":{"$error":"#VALUE!"}}]
[{"$nulls":8},{"$f":"VLOOKUP(TRIM(RIGHT(G48,LEN(G48)-FIND(\" \",G48))), 'All Behavior Standards'!$A$36:$B$46, 2, FALSE)","v":{"$error":"#VALUE!"}}]
[{"$nulls":8},{"$f":"VLOOKUP(TRIM(RIGHT(G49,LEN(G49)-FIND(\" \",G49))), 'All Behavior Standards'!$A$36:$B$46, 2, FALSE)","v":{"$error":"#VALUE!"}}]
[{"$nulls":8},{"$f":"VLOOKUP(TRIM(RIGHT(G50,LEN(G50)-FIND(\" \",G50))), 'All Behavior Standards'!$A$36:$B$46, 2, FALSE)","v":{"$error":"#VALUE!"}}]
[{"$nulls":8},{"$f":"VLOOKUP(TRIM(RIGHT(G51,LEN(G51)-FIND(\" \",G51))), 'All Behavior Standards'!$A$36:$B$46, 2, FALSE)","v":{"$error":"#VALUE!"}}]
[{"$nulls":8},{"$f":"VLOOKUP(TRIM(RIGHT(G52,LEN(G52)-FIND(\" \",G52))), 'All Behavior Standards'!$A$36:$B$46, 2, FALSE)","v":{"$error":"#VALUE!"}}]
[{"$nulls":8},{"$f":"VLOOKUP(TRIM(RIGHT(G53,LEN(G53)-FIND(\" \",G53))), 'All Behavior Standards'!$A$36:$B$46, 2, FALSE)","v":{"$error":"#VALUE!"}}]
[{"$nulls":8},{"$f":"VLOOKUP(TRIM(RIGHT(G54,LEN(G54)-FIND(\" \",G54))), 'All Behavior Standards'!$A$36:$B$46, 2, FALSE)","v":{"$error":"#VALUE!"}}]
[{"$nulls":8},{"$f":"VLOOKUP(TRIM(RIGHT(G55,LEN(G55)-FIND(\" \",G55))), 'All Behavior Standards'!$A$36:$B$46, 2, FALSE)","v":{"$error":"#VALUE!"}}]
[{"$nulls":8},{"$f":"VLOOKUP(TRIM(RIGHT(G56,LEN(G56)-FIND(\" \",G56))), 'All Behavior Standards'!$A$36:$B$46, 2, FALSE)","v":{"$error":"#VALUE!"}}]
[{"$nulls":8},{"$f":"VLOOKUP(TRIM(RIGHT(G57,LEN(G57)-FIND(\" \",G57))), 'All Behavior Standards'!$A$36:$B$46, 2, FALSE)","v":{"$error":"#VALUE!"}}]
[{"$nulls":8},{"$f":"VLOOKUP(TRIM(RIGHT(G58,LEN(G58)-FIND(\" \",G58))), 'All Behavior Standards'!$A$36:$B$46, 2, FALSE)","v":{"$error":"#VALUE!"}}]
[{"$nulls":8},{"$f":"VLOOKUP(TRIM(RIGHT(G59,LEN(G59)-FIND(\" \",G59))), 'All Behavior Standards'!$A$36:$B$46, 2, FALSE)","v":{"$error":"#VALUE!"}}]
[{"$nulls":8},{"$f":"VLOOKUP(TRIM(RIGHT(G60,LEN(G60)-FIND(\" \",G60))), 'All Behavior Standards'!$A$36:$B$46, 2, FALSE)","v":{"$error":"#VALUE!"}}]
[{"$nulls":8},{"$f":"VLOOKUP(TRIM(RIGHT(G61,LEN(G61)-FIND(\" \",G61))), 'All Behavior Standards'!$A$36:$B$46, 2, FALSE)","v":{"$error":"#VALUE!"}}]
[{"$nulls":8},{"$f":"VLOOKUP(TRIM(RIGHT(G62,LEN(G62)-FIND(\" \",G62))), 'All Behavior Standards'!$A$36:$B$46, 2, FALSE)","v":{"$error":"#VALUE!"}}]
[{"$nulls":8},{"$f":"VLOOKUP(TRIM(RIGHT(G63,LEN(G63)-FIND(\" \",G63))), 'All Behavior Standards'!$A$36:$B$46, 2, FALSE)","v":{"$error":"#VALUE!"}}]
[{"$nulls":8},{"$f":"VLOOKUP(TRIM(RIGHT(G64,LEN(G64)-FIND(\" \",G64))), 'All Behavior Standards'!$A$36:$B$46, 2, FALSE)","v":{"$error":"#VALUE!"}}]
[{"$nulls":8},{"$f":"VLOOKUP(TRIM(RIGHT(G65,LEN(G65)-FIND(\" \",G65))), 'All Behavior Standards'!$A$36:$B$46, 2, FALSE)","v":{"$error":"#VALUE!"}}]
[{"$nulls":8},{"$f":"VLOOKUP(TRIM(RIGHT(G66,LEN(G66)-FIND(\" \",G66))), 'All Behavior Standards'!$A$36:$B$46, 2, FALSE)","v":{"$error":"#VALUE!"}}]
[{"$nulls":8},{"$f":"VLOOKUP(TRIM(RIGHT(G67,LEN(G67)-FIND(\" \",G67))), 'All Behavior Standards'!$A$36:$B$46, 2, FALSE)","v":{"$error":"#VALUE!"}}]
[{"$nulls":8},{"$f":"VLOOKUP(TRIM(RIGHT(G68,LEN(G68)-FIND(\" \",G68))), 'All Behavior Standards'!$A$36:$B$46, 2, FALSE)","v":{"$error":"#VALUE!"}}]
[{"$nulls":8},{"$f":"VLOOKUP(TRIM(RIGHT(G69,LEN(G69)-FIND(\" \",G69))), 'All Behavior Standards'!$A$36:$B$46, 2, FALSE)","v":{"$error":"#VALUE!"}}]
[{"$nulls":8},{"$f":"VLOOKUP(TRIM(RIGHT(G70,LEN(G70)-FIND(\" \",G70))), 'All Behavior Standards'!$A$36:$B$46, 2, FALSE)","v":{"$error":"#VALUE!"}}]
[{"$nulls":8},{"$f":"VLOOKUP(TRIM(RIGHT(G71,LEN(G71)-FIND(\" \",G71))), 'All Behavior Standards'!$A$36:$B$46, 2, FALSE)","v":{"$error":"#VALUE!"}}]
[]
[]
[]
[]
[]
["ASCA National Model® "]
["Fifth Edition "]
["2025-08-25"]

{"sheet":"Summary","index":4,"n_rows":4,"n_cols":5,"rows_kept":4,"merged":[[0,0,0,4],[1,0,1,2]]}
["Purpose: This summary tab calculates the total number of learning strategies, self-management skills and social skills, as well as the total number of Tier 1 and Tier 2 activities captured in the delivery plan. This can be helpful for reporting information data to leadership during the annual administrator conference, advisory council meetings, etc. "]
["ASCA Student Standards",null,null,"Delivery \nTier 1 or\n Tier 2","Totals"]
["Total Learning Strategies Selected ","Total Self-Management Skills","Total Social Skills ","Tier 1",{"$f":"COUNTIF('Delivery Plan'!E9:E71, \"Tier 1\")","v":0}]
[{"$f":"COUNTA('Delivery Plan'!A9:A74)","v":0},{"$f":"COUNTA('Delivery Plan'!B9:B74)","v":0},{"$f":"COUNTA('Delivery Plan'!C9:C74)","v":0},"Tier 2",{"$f":"COUNTIF('Delivery Plan'!E10:E72, \"Tier 2\")","v":0}]

{"sheet":"ASCA Student Standards ","index":5,"n_rows":0,"n_cols":0,"rows_kept":0}

{"sheet":"All Behavior Standards","index":6,"n_rows":46,"n_cols":7,"rows_kept":46,"hidden":true}
["Learning Strategies ","Self-Management Skills","Social Skills "]
["B-LS 1. \nCritical-thinking skills to make informed decisions","B-SMS 1. \nResponsibility for self and actions","B-SS 1. \nEffective oral and written communication skills and listening skills",null,"B-LS 1. \nCritical-thinking skills to make informed decisions"]
["B-LS 2. \nCreative approach to learning, tasks and problem solving","B-SMS 2. \nSelf-discipline and self-control","B-SS 2. \nPositive, respectful and supportive relationships with other students who are similar to and different from them",null,"B-LS 2. Creative approach to learning, tasks and problem solving"]
["B-LS 3. \nTime-management, organizational and study skills","B-SMS 3. \nIndependent work ","B-SS 3. \nPositive relationships with adults that support success",null,"B-LS 3. \nTime-management, organizational and study skills"]
["B-LS 4. \nSelf-motivation and self-direction to learning","B-SMS 4. \nDelayed gratification for long-term rewards","B-SS 4. \nEmpathy",null,"B-LS 4. \nSelf-motivation and self-direction to learning"]
["B-LS 5. \nMedia and technology skills to enhance learning","B-SMS 5. \nPerseverance to achieve long- and short-term goals","B-SS 5. \nEthical decision-making and social responsibility",null,"B-LS 5. \nMedia and technology skills to enhance learning"]
["B-LS 6. \nHigh-quality standards for tasks and activities","B-SMS 6. \nAbility to identify and overcome barriers ","B-SS 6. \nEffective collaboration and cooperation skills",null,"B-LS 6. \nHigh-quality standards for tasks and activities"]
["B-LS 7. \nLong- and short-term academic, career and social/emotional goals","B-SMS 7. \nEffective coping skills ","B-SS 7. \nLeadership and teamwork skills to work effectively in diverse groups",null,"B-LS 7. \nLong- and short-term academic, career and social/emotional goals"]
["B-LS 8. \nEngagement in challenging coursework","B-SMS 8. \nBalance of school, home and community activities","B-SS 8. \nAdvocacy skills for self and others and ability to assert self, when necessary",null,"B-LS 8. \nEngagement in challenging coursework"]
["B-LS 9. \nDecision-making informed by gathering evidence, getting others’ perspectives and recognizing personal bias","B-SMS 9. \nPersonal safety skills","B-SS 9. \nSocial maturity and behaviors appropriate to the situation and environment",null,"B-LS 9. \nDecision-making informed by gathering evidence, getting others’ perspectives and recognizing personal bias"]
["B-LS 10. \nParticipation in enrichment and extracurricular activities","B-SMS 10. \nAbility to manage transitions and adapt to change","B-SS 10. \nCultural awareness, sensitivity and responsiveness",null,"B-LS 10. \nParticipation in enrichment and extracurricular activities"]
[]
[{"$nulls":4},"B-SMS 1. \nResponsibility for self and actions"]
[{"$nulls":4},"B-SMS 2. \nSelf-discipline and self-control",null,"Tier 1"]
["(01) Jul",{"$nulls":3},"B-SMS 3. \nIndependent work ",null,"Tier 2"]
["(02) Aug",null,"Tier 1",null,"B-SMS 4. \nDelayed gratification for long-term rewards"]
["(03) Sept",null,"Tier 2 ",null,"B-SMS 5. \nPerseverance to achieve long- and short-term goals"]
["(04) Oct",{"$nulls":3},"B-SMS 6. \nAbility to identify and overcome barriers "]
["(05) Nov",{"$nulls":3},"B-SMS 7. \nEffective coping skills "]
["(06) Dec",{"$nulls":3},"B-SMS 8. \nBalance of school, home and community activities"]
["(07) Jan",{"$nulls":3},"B-SMS 9. \nPersonal safety skills"]
["(08) Feb",{"$nulls":3},"B-SMS 10. \nAbility to manage transitions and adapt to change"]
["(09) Mar"]
["(10) Apr",{"$nulls":3},"B-SS 1. \nEffective oral and written communication skills and listening skills"]
["(11) May",{"$nulls":3},"B-SS 2. \nPositive, respectful and supportive relationships with other students who are similar to and different from them"]
["(12) Jun",{"$nulls":3},"B-SS 3. \nPositive relationships with adults that support success"]
[{"$nulls":4},"B-SS 4. \nEmpathy"]
[{"$nulls":4},"B-SS 5. \nEthical decision-making and social responsibility"]
[{"$nulls":4},"B-SS 6. \nEffective collaboration and cooperation skills"]
[{"$nulls":4},"B-SS 7. \nLeadership and teamwork skills to work effectively in diverse groups"]
[{"$nulls":4},"B-SS 8. \nAdvocacy skills for self and others and ability to assert self, when necessary"]
[{"$nulls":4},"B-SS 9. \nSocial maturity and behaviors appropriate to the situation and environment"]
[{"$nulls":4},"B-SS 10. \nCultural awareness, sensitivity and responsiveness"]
[]
["Month","Order"]
["Jul",1]
["Aug",2]
["Sept",3]
["Oct",4]
["Nov",5]
["Dec",6]
["Jan",7]
["Feb",8]
["Mar",9]
["Apr",10]
["May",11]